[Event "Late-Titled-Tuesday-Blitz-September-12-2023"]
[Site "Chess.com"]
[Date "2023.09.12"]
[Round "2"]
[White "whitemirrorninja"]
[Black "cukin84"]
[Result "1-0"]
[WhiteElo "2475"]
[BlackElo "2214"]
[TimeControl "180+1"]
[EndTime "14:13:06 PDT"]
[Termination "whitemirrorninja won by resignation"]

1. c4 {[%clk 0:02:59.9]} 1... f5 {[%clk 0:02:59.5]} 2. Nc3 {[%clk 0:02:58.4]}
2... Nf6 {[%clk 0:02:59.2]} 3. h3 {[%clk 0:02:57.5]} 3... e5 {[%clk 0:02:59.2]}
4. g4 {[%clk 0:02:54.3]} 4... fxg4 {[%clk 0:02:58.2]} 5. hxg4 {[%clk 0:02:55.2]}
5... Nxg4 {[%clk 0:02:56.4]} 6. d4 {[%clk 0:02:55]} 6... exd4 {[%clk 0:02:44.1]}
7. Qxd4 {[%clk 0:02:55.9]} 7... Nf6 {[%clk 0:02:43.5]} 8. Bg5 {[%clk 0:02:53.3]}
8... Bb4 {[%clk 0:02:39.5]} 9. O-O-O {[%clk 0:02:51.4]} 9... Bxc3 {[%clk
0:02:36.8]} 10. Qxc3 {[%clk 0:02:50.6]} 10... d6 {[%clk 0:02:35.4]} 11. Bg2
{[%clk 0:02:46.8]} 11... Nc6 {[%clk 0:02:34.4]} 12. Nf3 {[%clk 0:02:41.8]} 12...
Bf5 {[%clk 0:02:33.6]} 13. Nd4 {[%clk 0:02:40.5]} 13... Nxd4 {[%clk 0:02:32.4]}
14. Rxd4 {[%clk 0:02:39.5]} 14... Qe7 {[%clk 0:02:18.8]} 15. Rf4 {[%clk
0:02:36]} 15... Bg6 {[%clk 0:02:09.4]} 16. Rxf6 {[%clk 0:02:24.4]} 16... gxf6
{[%clk 0:02:09.2]} 17. Bxf6 {[%clk 0:02:25.1]} 17... Qf7 {[%clk 0:01:58]} 18.
Bxb7 {[%clk 0:02:19]} 18... O-O {[%clk 0:01:47.2]} 19. Bd5 {[%clk 0:02:17.5]}
1-0

[Event "Late-Titled-Tuesday-Blitz-September-12-2023"]
[Site "Chess.com"]
[Date "2023.09.12"]
[Round "2"]
[White "tteshan"]
[Black "Zkid"]
[Result "0-1"]
[WhiteElo "2524"]
[BlackElo "2911"]
[TimeControl "180+1"]
[EndTime "14:13:40 PDT"]
[Termination "Zkid won by resignation"]

1. e4 {[%clk 0:03:00.9]} 1... e6 {[%clk 0:02:59.9]} 2. d4 {[%clk 0:03:00.9]}
2... d5 {[%clk 0:03:00.2]} 3. Nd2 {[%clk 0:03:01.6]} 3... c5 {[%clk 0:03:00]} 4.
exd5 {[%clk 0:03:00.9]} 4... Qxd5 {[%clk 0:03:00.9]} 5. Ngf3 {[%clk 0:03:01.3]}
5... cxd4 {[%clk 0:03:01.2]} 6. Bc4 {[%clk 0:03:01.7]} 6... Qd7 {[%clk
0:03:01.6]} 7. O-O {[%clk 0:03:02.3]} 7... Nc6 {[%clk 0:03:02.2]} 8. Nb3 {[%clk
0:03:02.8]} 8... Nf6 {[%clk 0:03:02.9]} 9. Nbxd4 {[%clk 0:03:03.5]} 9... Nxd4
{[%clk 0:03:03.8]} 10. Qxd4 {[%clk 0:03:04.1]} 10... Qxd4 {[%clk 0:03:04]} 11.
Nxd4 {[%clk 0:03:05]} 11... Bd7 {[%clk 0:03:04.6]} 12. Bf4 {[%clk 0:03:04.7]}
12... Bc5 {[%clk 0:03:03.3]} 13. Nf3 {[%clk 0:03:04.4]} 13... Rc8 {[%clk
0:03:03.5]} 14. Bb3 {[%clk 0:02:59.6]} 14... Bc6 {[%clk 0:03:03.3]} 15. Ne5
{[%clk 0:02:56.7]} 15... Be4 {[%clk 0:03:00.9]} 16. Rfe1 {[%clk 0:02:51.5]}
16... O-O {[%clk 0:02:51.9]} 17. Nd7 {[%clk 0:02:31.4]} 17... Nxd7 {[%clk
0:02:51.6]} 18. Rxe4 {[%clk 0:02:31.2]} 18... Be7 {[%clk 0:02:51.8]} 19. Re2
{[%clk 0:02:10.5]} 19... Nc5 {[%clk 0:02:50.3]} 20. Bc4 {[%clk 0:01:52]} 20...
Rfd8 {[%clk 0:02:39.7]} 21. a3 {[%clk 0:01:13.8]} 21... Rd4 {[%clk 0:02:35.2]}
22. Be5 {[%clk 0:00:53.5]} 22... Rxc4 {[%clk 0:02:35]} 0-1

[Event "Late-Titled-Tuesday-Blitz-September-12-2023"]
[Site "Chess.com"]
[Date "2023.09.12"]
[Round "2"]
[White "xozr"]
[Black "likantrophuss"]
[Result "0-1"]
[WhiteElo "2358"]
[BlackElo "2604"]
[TimeControl "180+1"]
[EndTime "14:13:52 PDT"]
[Termination "likantrophuss won by resignation"]

1. e4 {[%clk 0:02:56.6]} 1... e5 {[%clk 0:02:56.3]} 2. Nf3 {[%clk 0:02:56.5]}
2... Nc6 {[%clk 0:02:55]} 3. Bc4 {[%clk 0:02:55.9]} 3... Nf6 {[%clk 0:02:39.9]}
4. d3 {[%clk 0:02:50.8]} 4... h6 {[%clk 0:02:39.4]} 5. O-O {[%clk 0:02:50]} 5...
d6 {[%clk 0:02:37.3]} 6. c3 {[%clk 0:02:45.9]} 6... g5 {[%clk 0:02:36.7]} 7. b4
{[%clk 0:02:26.9]} 7... Bg4 {[%clk 0:02:32.1]} 8. h3 {[%clk 0:02:26.5]} 8... Be6
{[%clk 0:02:29.2]} 9. Bxe6 {[%clk 0:02:20.6]} 9... fxe6 {[%clk 0:02:30.1]} 10.
d4 {[%clk 0:02:13.4]} 10... exd4 {[%clk 0:02:29.1]} 11. cxd4 {[%clk 0:02:14.3]}
11... Nxe4 {[%clk 0:02:20.8]} 12. d5 {[%clk 0:02:07.7]} 12... Bg7 {[%clk
0:02:12.9]} 13. dxc6 {[%clk 0:01:44.5]} 13... Bxa1 {[%clk 0:02:12]} 14. cxb7
{[%clk 0:01:44.1]} 14... Rb8 {[%clk 0:02:11.3]} 15. Qa4+ {[%clk 0:01:42.3]}
15... Qd7 {[%clk 0:02:06.4]} 16. Qxa7 {[%clk 0:01:42.8]} 16... O-O {[%clk
0:02:05.5]} 17. Nbd2 {[%clk 0:01:41.3]} 17... Nc3 {[%clk 0:01:50.8]} 18. Qb6
{[%clk 0:01:21.7]} 18... cxb6 {[%clk 0:01:49.5]} 0-1

[Event "Late-Titled-Tuesday-Blitz-September-12-2023"]
[Site "Chess.com"]
[Date "2023.09.12"]
[Round "2"]
[White "bipe137"]
[Black "Gyulamiryan-koryun"]
[Result "1-0"]
[WhiteElo "2433"]
[BlackElo "2012"]
[TimeControl "180+1"]
[EndTime "14:13:57 PDT"]
[Termination "bipe137 won on time"]

1. d4 {[%clk 0:03:00.9]} 1... Nf6 {[%clk 0:02:58.5]} 2. c4 {[%clk 0:03:00.6]}
2... c5 {[%clk 0:02:57.6]} 3. d5 {[%clk 0:03:00.6]} 3... b5 {[%clk 0:02:56.7]}
4. Nf3 {[%clk 0:03:01]} 4... g6 {[%clk 0:02:55.9]} 5. Qc2 {[%clk 0:03:00.9]}
5... d6 {[%clk 0:02:53.7]} 6. e4 {[%clk 0:03:01.4]} 6... Bg7 {[%clk 0:02:51.3]}
7. cxb5 {[%clk 0:03:00.9]} 7... a6 {[%clk 0:02:50.3]} 8. a4 {[%clk 0:03:01.4]}
8... O-O {[%clk 0:02:47.6]} 9. Nc3 {[%clk 0:03:01.9]} 9... Bd7 {[%clk
0:02:42.9]} 10. Bd2 {[%clk 0:02:59.3]} 10... axb5 {[%clk 0:02:40.6]} 11. Bxb5
{[%clk 0:02:59.1]} 11... Ng4 {[%clk 0:02:31]} 12. O-O {[%clk 0:02:56.8]} 12...
Ne5 {[%clk 0:02:22.1]} 13. Nxe5 {[%clk 0:02:54.1]} 13... Bxe5 {[%clk 0:02:20.5]}
14. Kh1 {[%clk 0:02:53.9]} 1-0

[Event "Late-Titled-Tuesday-Blitz-September-12-2023"]
[Site "Chess.com"]
[Date "2023.09.12"]
[Round "2"]
[White "Rinqed222"]
[Black "Haykoooo0o"]
[Result "1-0"]
[WhiteElo "2241"]
[BlackElo "2468"]
[TimeControl "180+1"]
[EndTime "14:14:02 PDT"]
[Termination "Rinqed222 won by resignation"]

1. e4 {[%clk 0:03:00.9]} 1... c6 {[%clk 0:02:50.7]} 2. d4 {[%clk 0:02:59.4]}
2... d5 {[%clk 0:02:50.5]} 3. e5 {[%clk 0:03:00]} 3... c5 {[%clk 0:02:50.8]} 4.
dxc5 {[%clk 0:02:59.3]} 4... e6 {[%clk 0:02:51.3]} 5. a3 {[%clk 0:02:59.3]} 5...
Bxc5 {[%clk 0:02:51.2]} 6. b4 {[%clk 0:02:59.4]} 6... Bb6 {[%clk 0:02:51.8]} 7.
Bb2 {[%clk 0:02:59.6]} 7... Ne7 {[%clk 0:02:52.4]} 8. Bd3 {[%clk 0:02:59.9]}
8... Nbc6 {[%clk 0:02:52.9]} 9. Nf3 {[%clk 0:03:00.1]} 9... Ng6 {[%clk
0:02:53.3]} 10. O-O {[%clk 0:02:57.4]} 10... Nf4 {[%clk 0:02:53.3]} 11. c4
{[%clk 0:02:52.7]} 11... Nxd3 {[%clk 0:02:50.8]} 12. Qxd3 {[%clk 0:02:52.7]}
12... dxc4 {[%clk 0:02:49.2]} 13. Qxc4 {[%clk 0:02:49.5]} 13... O-O {[%clk
0:02:48.3]} 14. Nc3 {[%clk 0:02:42.8]} 14... Nd4 {[%clk 0:02:41.7]} 15. Nxd4
{[%clk 0:02:13.1]} 15... Qxd4 {[%clk 0:02:39.8]} 16. Qe2 {[%clk 0:02:10]} 16...
Qd7 {[%clk 0:02:32.9]} 17. Rad1 {[%clk 0:02:04.9]} 17... Qe7 {[%clk 0:02:32.5]}
18. Ne4 {[%clk 0:01:58.1]} 18... Bd7 {[%clk 0:02:30.3]} 19. Nf6+ {[%clk
0:01:06.7]} 19... Kh8 {[%clk 0:02:05.6]} 20. Rxd7 {[%clk 0:01:02.5]} 1-0

[Event "Late-Titled-Tuesday-Blitz-September-12-2023"]
[Site "Chess.com"]
[Date "2023.09.12"]
[Round "2"]
[White "Efremov_Vlad"]
[Black "GoltsevDmitry2000"]
[Result "0-1"]
[WhiteElo "2372"]
[BlackElo "2631"]
[TimeControl "180+1"]
[EndTime "14:14:06 PDT"]
[Termination "GoltsevDmitry2000 won by checkmate"]

1. d4 {[%clk 0:03:00.9]} 1... e6 {[%clk 0:02:59.5]} 2. c4 {[%clk 0:03:01]} 2...
d5 {[%clk 0:02:59.9]} 3. Nf3 {[%clk 0:02:58.9]} 3... Nf6 {[%clk 0:03:00.1]} 4.
g3 {[%clk 0:02:58.5]} 4... c5 {[%clk 0:03:00.4]} 5. cxd5 {[%clk 0:02:57.4]} 5...
exd5 {[%clk 0:03:00.2]} 6. Nc3 {[%clk 0:02:56]} 6... Nc6 {[%clk 0:03:00.7]} 7.
Bg2 {[%clk 0:02:56.6]} 7... Be7 {[%clk 0:03:00.6]} 8. O-O {[%clk 0:02:57]} 8...
O-O {[%clk 0:02:59.1]} 9. b3 {[%clk 0:02:52.5]} 9... cxd4 {[%clk 0:02:58.7]} 10.
Nxd4 {[%clk 0:02:52.3]} 10... Bc5 {[%clk 0:02:59.6]} 11. Nxc6 {[%clk 0:02:49.3]}
11... bxc6 {[%clk 0:03:00.5]} 12. Bb2 {[%clk 0:02:50]} 12... Bg4 {[%clk
0:02:58.8]} 13. h3 {[%clk 0:02:44]} 13... Be6 {[%clk 0:02:57.3]} 14. Rc1 {[%clk
0:02:42.9]} 14... Bd6 {[%clk 0:02:40.3]} 15. Na4 {[%clk 0:02:41.2]} 15... Bd7
{[%clk 0:02:38.9]} 16. Nc5 {[%clk 0:02:40.6]} 16... Qe7 {[%clk 0:02:32.9]} 17.
Bxf6 {[%clk 0:02:38.1]} 17... gxf6 {[%clk 0:02:32.5]} 18. Nxd7 {[%clk
0:02:37.1]} 18... Qxd7 {[%clk 0:02:33.4]} 19. Qc2 {[%clk 0:02:30.6]} 19... Rac8
{[%clk 0:02:32.2]} 20. e4 {[%clk 0:02:31.1]} 20... d4 {[%clk 0:02:31.6]} 21.
Rfd1 {[%clk 0:02:28.4]} 21... c5 {[%clk 0:02:31.7]} 22. Bf1 {[%clk 0:02:25.1]}
22... Kh8 {[%clk 0:02:29.2]} 23. Kg2 {[%clk 0:02:24.1]} 23... Rg8 {[%clk
0:02:29]} 24. Be2 {[%clk 0:02:24.4]} 24... Qc7 {[%clk 0:02:25.1]} 25. Rd2 {[%clk
0:02:19.3]} 25... Bxg3 {[%clk 0:02:24.5]} 26. Bg4 {[%clk 0:02:12.4]} 26... Bf4
{[%clk 0:02:23.7]} 27. Kf3 {[%clk 0:02:03.8]} 27... Qe5 {[%clk 0:02:20.2]} 28.
Re2 {[%clk 0:02:00.2]} 28... Bxc1 {[%clk 0:02:10]} 29. Qxc1 {[%clk 0:02:01.1]}
29... Rcd8 {[%clk 0:02:06.3]} 30. Bf5 {[%clk 0:01:54.4]} 30... d3 {[%clk
0:02:03.7]} 31. Qh6 {[%clk 0:01:54.9]} 31... Rg7 {[%clk 0:02:02.5]} 32. Re1
{[%clk 0:01:50.7]} 32... d2 {[%clk 0:01:59.3]} 33. Rd1 {[%clk 0:01:43.7]} 33...
Qc3+ {[%clk 0:01:57.6]} 34. Kf4 {[%clk 0:01:44]} 34... Rd3 {[%clk 0:01:53.7]}
35. Qh5 {[%clk 0:01:40.7]} 35... Qe5# {[%clk 0:01:53]} 0-1

[Event "Late-Titled-Tuesday-Blitz-September-12-2023"]
[Site "Chess.com"]
[Date "2023.09.12"]
[Round "2"]
[White "DanielNaroditsky"]
[Black "RETURNOFTHELAGGER"]
[Result "1-0"]
[WhiteElo "3080"]
[BlackElo "2561"]
[TimeControl "180+1"]
[EndTime "14:14:14 PDT"]
[Termination "DanielNaroditsky won by resignation"]

1. d4 {[%clk 0:02:59]} 1... Nf6 {[%clk 0:02:53]} 2. Nc3 {[%clk 0:02:55.3]} 2...
g6 {[%clk 0:02:53.9]} 3. e4 {[%clk 0:02:52.8]} 3... d5 {[%clk 0:02:44.1]} 4. e5
{[%clk 0:02:52.5]} 4... Ne4 {[%clk 0:02:44]} 5. Nce2 {[%clk 0:02:50.2]} 5... f6
{[%clk 0:02:08.5]} 6. Nf3 {[%clk 0:02:48.5]} 6... c5 {[%clk 0:02:00.2]} 7. Nf4
{[%clk 0:02:41.3]} 7... Nc6 {[%clk 0:01:57.2]} 8. dxc5 {[%clk 0:02:37.4]} 8...
e6 {[%clk 0:01:55]} 9. exf6 {[%clk 0:02:35.1]} 9... Qxf6 {[%clk 0:01:55.9]} 10.
Bd3 {[%clk 0:02:35]} 10... Bxc5 {[%clk 0:01:54.5]} 11. O-O {[%clk 0:02:34.2]}
11... O-O {[%clk 0:01:54.1]} 12. c4 {[%clk 0:02:32.5]} 12... Nxf2 {[%clk
0:01:42.1]} 13. Rxf2 {[%clk 0:02:31.9]} 13... Bxf2+ {[%clk 0:01:43]} 14. Kxf2
{[%clk 0:02:32.7]} 14... e5 {[%clk 0:01:43.9]} 15. Nxd5 {[%clk 0:02:31.2]} 15...
Qh4+ {[%clk 0:01:25.5]} 16. Kg1 {[%clk 0:02:24.3]} 16... Qh5 {[%clk 0:01:26.4]}
17. Be4 {[%clk 0:02:09.3]} 17... Bg4 {[%clk 0:01:26.8]} 18. Be3 {[%clk
0:02:07.1]} 18... Nd4 {[%clk 0:01:22.7]} 19. Bxd4 {[%clk 0:02:06]} 19... exd4
{[%clk 0:01:23.6]} 20. Qxd4 {[%clk 0:02:06.4]} 20... Rae8 {[%clk 0:01:18.2]} 21.
Nf6+ {[%clk 0:01:55.3]} 21... Rxf6 {[%clk 0:01:16.9]} 22. Qxf6 {[%clk
0:01:56.2]} 22... Rxe4 {[%clk 0:01:17.8]} 23. Ng5 {[%clk 0:01:56.5]} 1-0

[Event "Late-Titled-Tuesday-Blitz-September-12-2023"]
[Site "Chess.com"]
[Date "2023.09.12"]
[Round "2"]
[White "Kombinator01"]
[Black "antispeciesism"]
[Result "1-0"]
[WhiteElo "2435"]
[BlackElo "2056"]
[TimeControl "180+1"]
[EndTime "14:14:31 PDT"]
[Termination "Kombinator01 won by resignation"]

1. e4 {[%clk 0:02:55.2]} 1... c5 {[%clk 0:02:57.6]} 2. c3 {[%clk 0:02:53.4]}
2... Nf6 {[%clk 0:02:52.5]} 3. e5 {[%clk 0:02:52.2]} 3... Nd5 {[%clk 0:02:53]}
4. d4 {[%clk 0:02:52.9]} 4... cxd4 {[%clk 0:02:52.5]} 5. cxd4 {[%clk 0:02:53.8]}
5... d6 {[%clk 0:02:53.3]} 6. f4 {[%clk 0:02:51.7]} 6... Nc6 {[%clk 0:02:52.9]}
7. Nc3 {[%clk 0:02:50.1]} 7... dxe5 {[%clk 0:02:42.4]} 8. fxe5 {[%clk
0:02:48.7]} 8... e6 {[%clk 0:02:40.7]} 9. Nf3 {[%clk 0:02:48.2]} 9... Be7 {[%clk
0:02:39.1]} 10. Bd3 {[%clk 0:02:47.1]} 10... O-O {[%clk 0:02:35.6]} 11. O-O
{[%clk 0:02:46]} 11... Qb6 {[%clk 0:02:16.8]} 12. Kh1 {[%clk 0:02:37.5]} 12...
Bd7 {[%clk 0:01:54.6]} 13. a3 {[%clk 0:02:27.3]} 13... Nxc3 {[%clk 0:01:37.3]}
14. bxc3 {[%clk 0:02:28.2]} 14... Na5 {[%clk 0:01:36.4]} 15. Bg5 {[%clk
0:02:24.1]} 15... f6 {[%clk 0:00:52.9]} 16. exf6 {[%clk 0:02:18.4]} 16... Bxf6
{[%clk 0:00:53.1]} 17. Bxf6 {[%clk 0:02:14]} 17... Rxf6 {[%clk 0:00:53]} 18. Ne5
{[%clk 0:02:14.3]} 1-0

[Event "Late-Titled-Tuesday-Blitz-September-12-2023"]
[Site "Chess.com"]
[Date "2023.09.12"]
[Round "2"]
[White "Dom1nant1337"]
[Black "Inepton_Fermion"]
[Result "1-0"]
[WhiteElo "2603"]
[BlackElo "2356"]
[TimeControl "180+1"]
[EndTime "14:15:06 PDT"]
[Termination "Dom1nant1337 won by resignation"]

1. d4 {[%clk 0:03:00.9]} 1... Nf6 {[%clk 0:02:59.8]} 2. Nc3 {[%clk 0:03:00.1]}
2... d5 {[%clk 0:02:59.5]} 3. Bf4 {[%clk 0:03:00.3]} 3... a6 {[%clk 0:02:58.6]}
4. e3 {[%clk 0:03:00.3]} 4... e6 {[%clk 0:02:58.6]} 5. Nf3 {[%clk 0:02:58]} 5...
Bb4 {[%clk 0:02:47.1]} 6. Bd3 {[%clk 0:02:57.1]} 6... c5 {[%clk 0:02:39.7]} 7.
O-O {[%clk 0:02:54.6]} 7... Nc6 {[%clk 0:02:31.5]} 8. dxc5 {[%clk 0:02:52.2]}
8... Bxc5 {[%clk 0:02:30]} 9. e4 {[%clk 0:02:45.4]} 9... dxe4 {[%clk 0:02:07.5]}
10. Nxe4 {[%clk 0:02:46.3]} 10... Be7 {[%clk 0:02:08]} 11. Qe2 {[%clk
0:02:32.9]} 11... h6 {[%clk 0:02:00]} 12. c3 {[%clk 0:02:28.6]} 12... Nxe4
{[%clk 0:01:51]} 13. Bxe4 {[%clk 0:02:18.3]} 13... Bd7 {[%clk 0:01:48.7]} 14.
Rad1 {[%clk 0:02:16.4]} 14... Qa5 {[%clk 0:01:38.5]} 15. Bb1 {[%clk 0:01:50.3]}
15... Rd8 {[%clk 0:01:35.6]} 16. b4 {[%clk 0:01:36.6]} 16... Qa3 {[%clk
0:01:17.6]} 17. Qc2 {[%clk 0:01:35.8]} 17... Rc8 {[%clk 0:00:57.2]} 18. Rxd7
{[%clk 0:01:26.5]} 18... Kxd7 {[%clk 0:00:57.1]} 19. Bc1 {[%clk 0:01:26.2]} 1-0

[Event "Late-Titled-Tuesday-Blitz-September-12-2023"]
[Site "Chess.com"]
[Date "2023.09.12"]
[Round "2"]
[White "kreonx"]
[Black "KIEV-1"]
[Result "1-0"]
[WhiteElo "2462"]
[BlackElo "2189"]
[TimeControl "180+1"]
[EndTime "14:15:08 PDT"]
[Termination "kreonx won by resignation"]

1. e4 {[%clk 0:02:57.2]} 1... c5 {[%clk 0:03:00.2]} 2. Nc3 {[%clk 0:02:54.8]}
2... d6 {[%clk 0:03:00.4]} 3. g3 {[%clk 0:02:55.1]} 3... e5 {[%clk 0:03:00.1]}
4. Bg2 {[%clk 0:02:55.4]} 4... Nc6 {[%clk 0:03:00.6]} 5. d3 {[%clk 0:02:55.2]}
5... Be6 {[%clk 0:03:00.7]} 6. f4 {[%clk 0:02:55.5]} 6... g6 {[%clk 0:03:00.6]}
7. Nf3 {[%clk 0:02:51]} 7... h6 {[%clk 0:02:58.5]} 8. Nh4 {[%clk 0:02:45.4]}
8... Qd7 {[%clk 0:02:52.3]} 9. f5 {[%clk 0:02:34.9]} 9... gxf5 {[%clk
0:02:52.4]} 10. O-O {[%clk 0:02:18.8]} 10... fxe4 {[%clk 0:02:36.5]} 11. dxe4
{[%clk 0:02:19.2]} 11... O-O-O {[%clk 0:02:35.7]} 12. Nd5 {[%clk 0:02:15.8]}
12... Nce7 {[%clk 0:02:23.6]} 13. Ne3 {[%clk 0:02:03.8]} 13... Bg7 {[%clk
0:02:02.3]} 14. Bd2 {[%clk 0:02:00.2]} 14... Nf6 {[%clk 0:01:54.7]} 15. Nhf5
{[%clk 0:01:52.5]} 15... Bxf5 {[%clk 0:01:50.5]} 16. Nxf5 {[%clk 0:01:52.6]}
16... Nxf5 {[%clk 0:01:50.1]} 17. Rxf5 {[%clk 0:01:50.3]} 17... Qa4 {[%clk
0:01:32.3]} 18. Qf3 {[%clk 0:01:43.1]} 18... Qd4+ {[%clk 0:01:24.7]} 19. Be3
{[%clk 0:01:39.9]} 19... Qxb2 {[%clk 0:01:23.1]} 20. Rf1 {[%clk 0:01:39.9]}
20... Qxc2 {[%clk 0:01:02.6]} 21. Rxf6 {[%clk 0:01:35.6]} 21... Bxf6 {[%clk
0:01:02.6]} 22. Qxf6 {[%clk 0:01:35.6]} 22... Qxa2 {[%clk 0:01:02.4]} 23. Qe7
{[%clk 0:01:26.4]} 23... Qe6 {[%clk 0:00:56.4]} 24. Qh4 {[%clk 0:01:21.1]} 24...
Rdf8 {[%clk 0:00:55.4]} 25. Bh3 {[%clk 0:01:20.6]} 25... f5 {[%clk 0:00:53.9]}
26. Rxf5 {[%clk 0:01:20.1]} 1-0

[Event "Late-Titled-Tuesday-Blitz-September-12-2023"]
[Site "Chess.com"]
[Date "2023.09.12"]
[Round "2"]
[White "RCone"]
[Black "bazar-wokzal"]
[Result "0-1"]
[WhiteElo "2337"]
[BlackElo "2567"]
[TimeControl "180+1"]
[EndTime "14:15:12 PDT"]
[Termination "bazar-wokzal won by checkmate"]

1. e4 {[%clk 0:03:00.9]} 1... Nc6 {[%clk 0:02:59]} 2. Bc4 {[%clk 0:02:59.7]}
2... Nf6 {[%clk 0:02:58.5]} 3. Nc3 {[%clk 0:02:59.6]} 3... Nxe4 {[%clk
0:02:58.5]} 4. Bxf7+ {[%clk 0:02:24.1]} 4... Kxf7 {[%clk 0:02:58.2]} 5. Nxe4
{[%clk 0:02:24.3]} 5... e5 {[%clk 0:02:58.4]} 6. d3 {[%clk 0:02:08.5]} 6... d5
{[%clk 0:02:57.8]} 7. Ng5+ {[%clk 0:02:06.6]} 7... Kg8 {[%clk 0:02:53.1]} 8. Qh5
{[%clk 0:02:01]} 8... Qd7 {[%clk 0:02:46.2]} 9. Ne2 {[%clk 0:01:51.8]} 9... g6
{[%clk 0:02:37]} 10. Qh4 {[%clk 0:01:41.7]} 10... Be7 {[%clk 0:02:34]} 11. Qg3
{[%clk 0:01:40.7]} 11... Qg4 {[%clk 0:02:11.8]} 12. Nf3 {[%clk 0:01:40.8]} 12...
Kg7 {[%clk 0:02:06.5]} 13. c3 {[%clk 0:01:37.4]} 13... Rf8 {[%clk 0:02:05.5]}
14. O-O {[%clk 0:01:36.8]} 14... Bf6 {[%clk 0:01:56.2]} 15. Bd2 {[%clk
0:01:36.2]} 15... Qxg3 {[%clk 0:01:55.1]} 16. Nxg3 {[%clk 0:01:35.8]} 16... Bg4
{[%clk 0:01:55.1]} 17. Ne1 {[%clk 0:01:33.7]} 17... h5 {[%clk 0:01:53.7]} 18. h3
{[%clk 0:01:31.4]} 18... Bd7 {[%clk 0:01:53]} 19. f4 {[%clk 0:01:29.9]} 19...
Rae8 {[%clk 0:01:49.2]} 20. fxe5 {[%clk 0:01:29.2]} 20... Bxe5 {[%clk
0:01:47.6]} 21. Rxf8 {[%clk 0:01:27.8]} 21... Rxf8 {[%clk 0:01:47]} 22. Ne2
{[%clk 0:01:24.7]} 22... Bf5 {[%clk 0:01:45.7]} 23. d4 {[%clk 0:01:21.8]} 23...
Bd6 {[%clk 0:01:42.9]} 24. Nf4 {[%clk 0:01:11.4]} 24... Ne7 {[%clk 0:01:37.2]}
25. Nfd3 {[%clk 0:01:05.8]} 25... Be4 {[%clk 0:01:30.3]} 26. Bg5 {[%clk
0:01:01.2]} 26... Nf5 {[%clk 0:01:27.7]} 27. Nf2 {[%clk 0:01:00.5]} 27... Ng3
{[%clk 0:01:22.2]} 28. Nxe4 {[%clk 0:00:59.9]} 28... Rf1+ {[%clk 0:01:15.8]} 29.
Kh2 {[%clk 0:00:58.8]} 29... Rh1# {[%clk 0:01:15.1]} 0-1

[Event "Late-Titled-Tuesday-Blitz-September-12-2023"]
[Site "Chess.com"]
[Date "2023.09.12"]
[Round "2"]
[White "jinxy2009"]
[Black "Hilary46"]
[Result "0-1"]
[WhiteElo "2331"]
[BlackElo "2553"]
[TimeControl "180+1"]
[EndTime "14:15:13 PDT"]
[Termination "Hilary46 won by resignation"]

1. e4 {[%clk 0:02:59.9]} 1... e5 {[%clk 0:02:59.6]} 2. Nf3 {[%clk 0:02:58.8]}
2... Nc6 {[%clk 0:02:59.9]} 3. d4 {[%clk 0:02:56.9]} 3... exd4 {[%clk
0:02:59.8]} 4. Nxd4 {[%clk 0:02:57.8]} 4... Nf6 {[%clk 0:02:59.9]} 5. Nxc6
{[%clk 0:02:56.9]} 5... bxc6 {[%clk 0:03:00.8]} 6. e5 {[%clk 0:02:57.6]} 6...
Qe7 {[%clk 0:03:01.3]} 7. Qe2 {[%clk 0:02:57.7]} 7... Nd5 {[%clk 0:03:01.9]} 8.
h4 {[%clk 0:02:57.8]} 8... g6 {[%clk 0:03:01.3]} 9. Nd2 {[%clk 0:02:49.1]} 9...
Bg7 {[%clk 0:03:01.1]} 10. c4 {[%clk 0:02:45.8]} 10... Nf4 {[%clk 0:02:53.2]}
11. Qe3 {[%clk 0:02:30.5]} 11... Qxe5 {[%clk 0:02:53]} 12. Ne4 {[%clk
0:02:26.4]} 12... Ne6 {[%clk 0:02:37.8]} 13. Bd3 {[%clk 0:02:24.2]} 13... O-O
{[%clk 0:02:35.8]} 14. Bd2 {[%clk 0:02:03.2]} 14... d5 {[%clk 0:02:35.3]} 15.
Ng5 {[%clk 0:01:27.9]} 15... Nxg5 {[%clk 0:02:31.4]} 16. hxg5 {[%clk 0:01:22.5]}
16... Qxe3+ {[%clk 0:02:30.9]} 17. Bxe3 {[%clk 0:01:21.9]} 17... Bxb2 {[%clk
0:02:31.7]} 18. Rb1 {[%clk 0:01:21]} 18... Bc3+ {[%clk 0:02:29.5]} 19. Kf1
{[%clk 0:01:15.4]} 19... Ba6 {[%clk 0:02:28.5]} 20. Rh4 {[%clk 0:01:07.4]} 20...
Rab8 {[%clk 0:02:24.9]} 21. Rxb8 {[%clk 0:00:57.8]} 21... Rxb8 {[%clk
0:02:25.8]} 22. Bxa7 {[%clk 0:00:57.8]} 22... Rb2 {[%clk 0:02:24.2]} 23. a3
{[%clk 0:00:30.6]} 23... Ra2 {[%clk 0:02:23.1]} 24. Bc5 {[%clk 0:00:30.4]} 24...
Bb2 {[%clk 0:02:21.5]} 25. g3 {[%clk 0:00:17.1]} 25... Bxa3 {[%clk 0:02:21.3]}
26. Bxa3 {[%clk 0:00:17.1]} 26... Rxa3 {[%clk 0:02:21.6]} 27. Be2 {[%clk
0:00:18]} 27... Ra2 {[%clk 0:02:11.8]} 28. Rd4 {[%clk 0:00:15]} 28... Rc2 {[%clk
0:02:09.6]} 29. Bd3 {[%clk 0:00:12.8]} 29... Bxc4 {[%clk 0:02:05.7]} 30. Bxc4
{[%clk 0:00:10.8]} 30... Rxc4 {[%clk 0:02:06.6]} 31. Rd2 {[%clk 0:00:11]} 31...
Kf8 {[%clk 0:02:05.4]} 0-1